[Event "Late-Titled-Tuesday-Blitz-June-25-2024"]
[Site "Chess.com"]
[Date "2024.06.25"]
[Round "11"]
[White "mostafa_sakha"]
[Black "GMsKoRPioN"]
[Result "0-1"]
[WhiteElo "2416"]
[BlackElo "2589"]
[TimeControl "180+1"]
[EndTime "16:05:49 PDT"]
[Termination "GMsKoRPioN won on time"]

1. d4 {[%clk 0:03:00]} 1... g6 {[%clk 0:02:57.7]} 2. e4 {[%clk 0:02:59.6]} 2...
Bg7 {[%clk 0:02:58.2]} 3. Nf3 {[%clk 0:03:00.1]} 3... d6 {[%clk 0:02:58.8]} 4.
Bc4 {[%clk 0:03:00.5]} 4... Nf6 {[%clk 0:02:59.3]} 5. Qe2 {[%clk 0:03:00.8]}
5... Nc6 {[%clk 0:02:58.7]} 6. c3 {[%clk 0:02:59.5]} 6... e5 {[%clk 0:02:56.1]}
7. O-O {[%clk 0:02:58.6]} 7... O-O {[%clk 0:02:56]} 8. Rd1 {[%clk 0:02:57.9]}
8... Re8 {[%clk 0:02:53.5]} 9. dxe5 {[%clk 0:02:57.4]} 9... Nxe5 {[%clk
0:02:52.1]} 10. Nxe5 {[%clk 0:02:57.6]} 10... Rxe5 {[%clk 0:02:53]} 11. Nd2
{[%clk 0:02:35.4]} 11... Qe7 {[%clk 0:02:46.3]} 12. Qd3 {[%clk 0:02:12.9]} 12...
Nxe4 {[%clk 0:02:17.6]} 13. Nxe4 {[%clk 0:02:06.6]} 13... Rxe4 {[%clk
0:02:17.5]} 14. Bg5 {[%clk 0:02:03.4]} 14... Qe5 {[%clk 0:02:12.6]} 15. Bd5
{[%clk 0:01:52.1]} 15... Rg4 {[%clk 0:01:56.4]} 16. f4 {[%clk 0:01:43.5]} 16...
Qf5 {[%clk 0:01:54.9]} 17. Be4 {[%clk 0:01:19.4]} 17... Qc5+ {[%clk 0:01:53.1]}
18. Kh1 {[%clk 0:01:18.7]} 18... h6 {[%clk 0:01:52.5]} 19. h3 {[%clk 0:00:55.3]}
19... hxg5 {[%clk 0:01:49]} 20. hxg4 {[%clk 0:00:54.5]} 20... Bxg4 {[%clk
0:01:49.9]} 21. Bf3 {[%clk 0:00:50.5]} 21... Bf5 {[%clk 0:01:47.3]} 22. Qd5
{[%clk 0:00:41.1]} 22... gxf4 {[%clk 0:01:45.2]} 23. Qxc5 {[%clk 0:00:39.9]}
23... dxc5 {[%clk 0:01:44.6]} 24. Bxb7 {[%clk 0:00:39.9]} 24... Rb8 {[%clk
0:01:44.8]} 25. Bf3 {[%clk 0:00:35.1]} 25... Rxb2 {[%clk 0:01:45]} 26. Rd8+
{[%clk 0:00:32.4]} 26... Kh7 {[%clk 0:01:45]} 27. a4 {[%clk 0:00:18.3]} 27... g5
{[%clk 0:01:43.4]} 28. a5 {[%clk 0:00:16.5]} 28... g4 {[%clk 0:01:42.8]} 29. Bd5
{[%clk 0:00:15.7]} 29... Bxc3 {[%clk 0:01:32.6]} 30. Rf1 {[%clk 0:00:13.1]}
30... Be5 {[%clk 0:01:30.1]} 31. Bxf7 {[%clk 0:00:12.3]} 31... f3 {[%clk
0:01:30.4]} 32. gxf3 {[%clk 0:00:08.2]} 32... g3 {[%clk 0:01:30.6]} 33. Re1
{[%clk 0:00:04]} 33... Rh2+ {[%clk 0:01:29.3]} 34. Kg1 {[%clk 0:00:04.1]} 34...
Bd4+ {[%clk 0:01:28.6]} 35. Rxd4 {[%clk 0:00:04.6]} 35... cxd4 {[%clk
0:01:29.5]} 36. a6 {[%clk 0:00:01.9]} 36... d3 {[%clk 0:01:26.1]} 37. Bd5 {[%clk
0:00:01.5]} 37... d2 {[%clk 0:01:24.8]} 38. Rd1 {[%clk 0:00:01.7]} 38... Kg6
{[%clk 0:01:18]} 0-1

[Event "Late-Titled-Tuesday-Blitz-June-25-2024"]
[Site "Chess.com"]
[Date "2024.06.25"]
[Round "11"]
[White "RodriQA"]
[Black "Onthequiet"]
[Result "1-0"]
[WhiteElo "2421"]
[BlackElo "2311"]
[TimeControl "180+1"]
[EndTime "16:05:50 PDT"]
[Termination "RodriQA won by resignation"]

1. d4 {[%clk 0:02:59.5]} 1... d5 {[%clk 0:02:56.8]} 2. Bf4 {[%clk 0:02:58.9]}
2... c6 {[%clk 0:02:56.1]} 3. Nc3 {[%clk 0:02:57.2]} 3... Bf5 {[%clk 0:02:56.1]}
4. e3 {[%clk 0:02:50.6]} 4... Nd7 {[%clk 0:02:56.2]} 5. f3 {[%clk 0:02:42.8]}
5... e6 {[%clk 0:02:53.4]} 6. g4 {[%clk 0:02:41.4]} 6... Bg6 {[%clk 0:02:52.7]}
7. h4 {[%clk 0:02:41.7]} 7... h5 {[%clk 0:02:52.3]} 8. g5 {[%clk 0:02:40.3]}
8... Ne7 {[%clk 0:02:43.8]} 9. Nh3 {[%clk 0:02:33.2]} 9... Nf5 {[%clk
0:02:40.9]} 10. e4 {[%clk 0:02:01.1]} 10... Nxh4 {[%clk 0:02:26.1]} 11. Bg3
{[%clk 0:01:58.6]} 11... Nxf3+ {[%clk 0:02:21.9]} 12. Qxf3 {[%clk 0:01:58.1]}
12... Qb6 {[%clk 0:02:22.3]} 13. O-O-O {[%clk 0:01:55.6]} 13... Bb4 {[%clk
0:02:09.2]} 14. Bd3 {[%clk 0:01:35.3]} 14... Bxc3 {[%clk 0:01:52.3]} 15. bxc3
{[%clk 0:01:34.6]} 15... Qa5 {[%clk 0:01:40.3]} 16. Kd2 {[%clk 0:01:33.2]} 16...
c5 {[%clk 0:01:18.8]} 17. exd5 {[%clk 0:01:30.3]} 17... cxd4 {[%clk 0:01:18.6]}
18. Bxg6 {[%clk 0:01:23.5]} 18... fxg6 {[%clk 0:01:16.7]} 19. dxe6 {[%clk
0:01:02]} 19... dxc3+ {[%clk 0:01:16]} 20. Qxc3 {[%clk 0:01:01.5]} 20... Qxc3+
{[%clk 0:01:02.7]} 21. Kxc3 {[%clk 0:01:02.4]} 21... Rc8+ {[%clk 0:01:02.5]} 22.
Kb2 {[%clk 0:01:00.6]} 22... Nb6 {[%clk 0:01:01.9]} 23. Nf4 {[%clk 0:01:00.3]}
23... Nc4+ {[%clk 0:00:46.3]} 24. Kb3 {[%clk 0:00:51.1]} 24... Na5+ {[%clk
0:00:36.1]} 25. Kb4 {[%clk 0:00:45.6]} 25... Nc6+ {[%clk 0:00:33.7]} 26. Ka3
{[%clk 0:00:44.7]} 26... O-O {[%clk 0:00:29.9]} 27. Nxg6 {[%clk 0:00:41.3]}
27... Rf3+ {[%clk 0:00:29.2]} 28. Rd3 {[%clk 0:00:41.4]} 28... Rf5 {[%clk
0:00:29.2]} 29. Rxh5 {[%clk 0:00:38.1]} 29... Ra5+ {[%clk 0:00:27]} 30. Kb2
{[%clk 0:00:37.8]} 1-0

[Event "Late-Titled-Tuesday-Blitz-June-25-2024"]
[Site "Chess.com"]
[Date "2024.06.25"]
[Round "11"]
[White "Pachonpower"]
[Black "campochess"]
[Result "1-0"]
[WhiteElo "2470"]
[BlackElo "2251"]
[TimeControl "180+1"]
[EndTime "16:05:54 PDT"]
[Termination "Pachonpower won by resignation"]

1. d4 {[%clk 0:03:00.9]} 1... Nf6 {[%clk 0:02:58.2]} 2. Nf3 {[%clk 0:03:00.9]}
2... g6 {[%clk 0:02:57.3]} 3. Nc3 {[%clk 0:03:00.8]} 3... d5 {[%clk 0:02:56.5]}
4. Bf4 {[%clk 0:03:01]} 4... c6 {[%clk 0:02:52.7]} 5. Ne5 {[%clk 0:03:00.4]}
5... Nbd7 {[%clk 0:02:51.9]} 6. Qd2 {[%clk 0:03:00.3]} 6... h6 {[%clk
0:02:49.8]} 7. O-O-O {[%clk 0:02:59.6]} 7... Bg7 {[%clk 0:02:48.4]} 8. f3 {[%clk
0:02:59.4]} 8... Nb6 {[%clk 0:02:48]} 9. h4 {[%clk 0:02:58.9]} 9... Nfd7 {[%clk
0:02:41.4]} 10. e4 {[%clk 0:02:56.3]} 10... Nxe5 {[%clk 0:02:39.2]} 11. dxe5
{[%clk 0:02:57.2]} 11... Be6 {[%clk 0:02:31.9]} 12. Qe3 {[%clk 0:02:37.7]} 12...
Qc7 {[%clk 0:02:31.3]} 13. exd5 {[%clk 0:02:35.2]} 13... Nxd5 {[%clk 0:02:30.2]}
14. Nxd5 {[%clk 0:02:33.7]} 14... cxd5 {[%clk 0:02:22.6]} 15. Bb5+ {[%clk
0:02:32.7]} 15... Kf8 {[%clk 0:02:22.2]} 16. Kb1 {[%clk 0:02:29.1]} 16... Rc8
{[%clk 0:02:21.6]} 17. Bd3 {[%clk 0:02:28.3]} 17... Qc5 {[%clk 0:02:19.5]} 18.
Qxc5 {[%clk 0:02:20.2]} 18... Rxc5 {[%clk 0:02:18.3]} 19. Be3 {[%clk 0:02:20.8]}
19... Ra5 {[%clk 0:02:13.3]} 20. f4 {[%clk 0:02:20.5]} 20... f6 {[%clk
0:02:06.2]} 21. Bd4 {[%clk 0:02:17.6]} 21... Kf7 {[%clk 0:02:03.7]} 22. Rhg1
{[%clk 0:02:07.3]} 22... h5 {[%clk 0:02:01.7]} 23. g3 {[%clk 0:02:04.2]} 23...
Rc8 {[%clk 0:01:57.6]} 24. a3 {[%clk 0:02:03.6]} 24... Bf5 {[%clk 0:01:53.2]}
25. Bxf5 {[%clk 0:01:43.9]} 25... gxf5 {[%clk 0:01:52]} 26. Bc3 {[%clk
0:01:42.4]} 26... Rac5 {[%clk 0:01:49.2]} 27. Bb4 {[%clk 0:01:42.7]} 27... Rc4
{[%clk 0:01:48.3]} 28. Rxd5 {[%clk 0:01:41.9]} 28... Rxc2 {[%clk 0:01:45.8]} 29.
Rd7 {[%clk 0:01:37.8]} 29... Bf8 {[%clk 0:01:45.3]} 30. Rxb7 {[%clk 0:01:33.6]}
30... R8c7 {[%clk 0:01:28.8]} 31. Rxc7 {[%clk 0:01:32.3]} 31... Rxc7 {[%clk
0:01:27.6]} 32. exf6 {[%clk 0:01:32.8]} 32... Kxf6 {[%clk 0:01:26.4]} 33. Re1
{[%clk 0:01:31.9]} 33... Kf7 {[%clk 0:01:16.6]} 34. Re5 {[%clk 0:01:29.7]} 34...
Kf6 {[%clk 0:01:10.3]} 35. Bc3 {[%clk 0:01:27.3]} 35... Kg6 {[%clk 0:01:10]} 36.
Re6+ {[%clk 0:01:26.4]} 36... Kf7 {[%clk 0:01:09.1]} 37. Ra6 {[%clk 0:01:20]}
37... e6 {[%clk 0:01:08.5]} 38. Bd4 {[%clk 0:01:19.7]} 38... Bc5 {[%clk
0:01:01.6]} 39. Bxc5 {[%clk 0:01:19.8]} 39... Rxc5 {[%clk 0:01:01.6]} 40. Rxa7+
{[%clk 0:01:20.4]} 40... Kf6 {[%clk 0:01:01.9]} 41. Rd7 {[%clk 0:01:20.4]} 41...
Rc4 {[%clk 0:01:01.4]} 42. Rd3 {[%clk 0:01:19.9]} 42... Re4 {[%clk 0:00:54.9]}
43. b3 {[%clk 0:01:18.7]} 43... e5 {[%clk 0:00:55]} 44. fxe5+ {[%clk 0:01:16.3]}
44... Kxe5 {[%clk 0:00:55]} 45. a4 {[%clk 0:01:16.6]} 45... f4 {[%clk
0:00:54.7]} 46. gxf4+ {[%clk 0:01:16.4]} 46... Rxf4 {[%clk 0:00:54.4]} 47. Rh3
{[%clk 0:01:13.2]} 47... Kf5 {[%clk 0:00:54.1]} 48. a5 {[%clk 0:01:06.1]} 48...
Kg4 {[%clk 0:00:53.6]} 49. Rc3 {[%clk 0:01:06.1]} 49... Kxh4 {[%clk 0:00:49.1]}
50. Rc4 {[%clk 0:01:04.9]} 1-0

[Event "Late-Titled-Tuesday-Blitz-June-25-2024"]
[Site "Chess.com"]
[Date "2024.06.25"]
[Round "11"]
[White "Tigranpatagonian"]
[Black "MaestroCheck"]
[Result "0-1"]
[WhiteElo "2470"]
[BlackElo "2647"]
[TimeControl "180+1"]
[EndTime "16:05:57 PDT"]
[Termination "MaestroCheck won on time"]

1. d4 {[%clk 0:02:54.3]} 1... d5 {[%clk 0:02:59.4]} 2. c4 {[%clk 0:02:54.7]}
2... c6 {[%clk 0:02:59.4]} 3. Nf3 {[%clk 0:02:53.9]} 3... Nf6 {[%clk 0:02:59.4]}
4. Nc3 {[%clk 0:02:54.5]} 4... e6 {[%clk 0:02:58.5]} 5. Bg5 {[%clk 0:02:53.2]}
5... Be7 {[%clk 0:02:57.8]} 6. e3 {[%clk 0:02:52.6]} 6... O-O {[%clk 0:02:54.8]}
7. Qc2 {[%clk 0:02:51.9]} 7... h6 {[%clk 0:02:46.2]} 8. h4 {[%clk 0:02:44.4]}
8... Nbd7 {[%clk 0:02:44.9]} 9. O-O-O {[%clk 0:02:38.8]} 9... dxc4 {[%clk
0:02:42.3]} 10. Bxc4 {[%clk 0:02:38.2]} 10... Nd5 {[%clk 0:02:42.4]} 11. Ne4
{[%clk 0:02:25.5]} 11... b5 {[%clk 0:02:18.9]} 12. Bb3 {[%clk 0:02:16.3]} 12...
Nb4 {[%clk 0:02:14.8]} 13. Qd2 {[%clk 0:02:09.6]} 13... hxg5 {[%clk 0:02:08.1]}
14. hxg5 {[%clk 0:02:08]} 14... g6 {[%clk 0:02:08.2]} 15. Nf6+ {[%clk
0:02:00.3]} 15... Nxf6 {[%clk 0:02:04]} 16. gxf6 {[%clk 0:02:00]} 16... Bxf6
{[%clk 0:02:04.9]} 17. Qxb4 {[%clk 0:01:59.3]} 17... a5 {[%clk 0:01:59.9]} 18.
Qc5 {[%clk 0:01:55.4]} 18... Qe7 {[%clk 0:01:59.9]} 19. Qxe7 {[%clk 0:01:30.4]}
19... Bxe7 {[%clk 0:01:56.4]} 20. Kb1 {[%clk 0:01:30.4]} 20... Bb7 {[%clk
0:01:54.8]} 21. Ne5 {[%clk 0:01:28.7]} 21... Rfd8 {[%clk 0:01:54.6]} 22. Rc1
{[%clk 0:01:24.7]} 22... Rac8 {[%clk 0:01:53.1]} 23. Nd3 {[%clk 0:01:15.7]}
23... c5 {[%clk 0:01:39.3]} 24. Nxc5 {[%clk 0:01:11]} 24... Bxg2 {[%clk
0:01:38.9]} 25. Rhg1 {[%clk 0:01:11.5]} 25... Ba8 {[%clk 0:01:36.1]} 26. a4
{[%clk 0:00:17.9]} 26... bxa4 {[%clk 0:01:22.9]} 27. Nxa4 {[%clk 0:00:17.3]}
27... Rb8 {[%clk 0:01:22.8]} 28. Ka2 {[%clk 0:00:16.4]} 28... Rb4 {[%clk
0:01:15.6]} 29. Rc7 {[%clk 0:00:16.2]} 29... Bd6 {[%clk 0:01:15.4]} 30. Ra7
{[%clk 0:00:14.7]} 30... Rdb8 {[%clk 0:01:15.2]} 31. Bc2 {[%clk 0:00:12.6]}
31... Bd5+ {[%clk 0:01:15]} 32. Ka1 {[%clk 0:00:11.4]} 32... Bc6 {[%clk
0:01:04.5]} 33. Nc3 {[%clk 0:00:07.7]} 33... Rxb2 {[%clk 0:01:04]} 34. Be4
{[%clk 0:00:07.5]} 34... Bb4 {[%clk 0:01:03.3]} 35. Nd1 {[%clk 0:00:05.9]} 35...
Bxe4 {[%clk 0:00:57.4]} 36. Nxb2 {[%clk 0:00:02.8]} 36... Bc3 {[%clk 0:00:57.8]}
37. Rxa5 {[%clk 0:00:01.9]} 37... Bxa5 {[%clk 0:00:57.4]} 0-1

[Event "Late-Titled-Tuesday-Blitz-June-25-2024"]
[Site "Chess.com"]
[Date "2024.06.25"]
[Round "11"]
[White "Sondremelaa"]
[Black "ACollins05"]
[Result "1-0"]
[WhiteElo "2586"]
[BlackElo "2435"]
[TimeControl "180+1"]
[EndTime "16:06:04 PDT"]
[Termination "Sondremelaa won by resignation"]

1. e4 {[%clk 0:02:53.2]} 1... a6 {[%clk 0:02:59.6]} 2. d4 {[%clk 0:02:51.5]}
2... b5 {[%clk 0:02:59.8]} 3. c4 {[%clk 0:02:42.1]} 3... Bb7 {[%clk 0:03:00]} 4.
cxb5 {[%clk 0:02:38.2]} 4... Bxe4 {[%clk 0:02:57.1]} 5. Nc3 {[%clk 0:02:38.2]}
5... Bb7 {[%clk 0:02:56.7]} 6. Nf3 {[%clk 0:02:36.3]} 6... Nf6 {[%clk 0:02:57]}
7. bxa6 {[%clk 0:02:19.6]} 7... Nxa6 {[%clk 0:02:51.9]} 8. Be2 {[%clk
0:02:17.4]} 8... e6 {[%clk 0:02:52.1]} 9. O-O {[%clk 0:02:17]} 9... Be7 {[%clk
0:02:52.7]} 10. Bf4 {[%clk 0:02:03.6]} 10... O-O {[%clk 0:02:52.5]} 11. h3
{[%clk 0:02:02.8]} 11... c5 {[%clk 0:02:52.5]} 12. Re1 {[%clk 0:01:59.3]} 12...
cxd4 {[%clk 0:02:48.6]} 13. Nxd4 {[%clk 0:01:57.4]} 13... d6 {[%clk 0:02:47]}
14. Ndb5 {[%clk 0:01:57.6]} 14... Nd5 {[%clk 0:02:41.5]} 15. Nxd5 {[%clk
0:01:52.7]} 15... Bxd5 {[%clk 0:02:42.4]} 16. Bf3 {[%clk 0:01:52.5]} 16... Bxf3
{[%clk 0:02:40.7]} 17. Qxf3 {[%clk 0:01:53.4]} 17... Nc7 {[%clk 0:02:38.6]} 18.
Nxc7 {[%clk 0:01:50.3]} 18... Qxc7 {[%clk 0:02:39.5]} 19. b4 {[%clk 0:01:49.3]}
19... Rfb8 {[%clk 0:02:35.8]} 20. Reb1 {[%clk 0:01:46.3]} 20... Qb7 {[%clk
0:02:32.7]} 21. Qxb7 {[%clk 0:01:31]} 21... Rxb7 {[%clk 0:02:32.2]} 22. a4
{[%clk 0:01:31.4]} 22... Bf6 {[%clk 0:02:16]} 23. Ra2 {[%clk 0:01:29]} 23... Bc3
{[%clk 0:02:15.2]} 24. b5 {[%clk 0:01:28.8]} 24... e5 {[%clk 0:02:13.3]} 25. Be3
{[%clk 0:01:29.1]} 25... d5 {[%clk 0:02:13.3]} 26. Bc5 {[%clk 0:01:25.5]} 26...
Rc8 {[%clk 0:02:07.5]} 27. Bb4 {[%clk 0:01:23.7]} 27... d4 {[%clk 0:02:02.9]}
28. Bxc3 {[%clk 0:01:23.2]} 28... dxc3 {[%clk 0:02:03.8]} 29. Rc2 {[%clk
0:01:20]} 29... g6 {[%clk 0:02:00.2]} 30. a5 {[%clk 0:01:19]} 30... Rc5 {[%clk
0:01:56.8]} 31. b6 {[%clk 0:01:09.1]} 31... Rxa5 {[%clk 0:01:54.4]} 32. Rxc3
{[%clk 0:01:09.5]} 32... Ra6 {[%clk 0:01:51.3]} 33. Rc6 {[%clk 0:01:09.7]} 33...
Kf8 {[%clk 0:01:50.7]} 34. Kf1 {[%clk 0:01:09.5]} 34... Ke7 {[%clk 0:01:51.1]}
35. g4 {[%clk 0:01:08.1]} 35... Kd7 {[%clk 0:01:50.8]} 36. Rf6 {[%clk
0:01:08.1]} 36... Ke7 {[%clk 0:01:50.5]} 37. g5 {[%clk 0:01:08.7]} 37... h6
{[%clk 0:01:49.9]} 38. h4 {[%clk 0:01:09.3]} 38... hxg5 {[%clk 0:01:49.9]} 39.
hxg5 {[%clk 0:01:10.2]} 39... Ra8 {[%clk 0:01:47.2]} 40. Ke2 {[%clk 0:01:04.7]}
40... Ra2+ {[%clk 0:01:46.5]} 41. Ke3 {[%clk 0:01:05.1]} 41... Rc2 {[%clk
0:01:44.1]} 42. f3 {[%clk 0:01:02.9]} 42... Rc4 {[%clk 0:01:43]} 43. Kd3 {[%clk
0:01:01.4]} 43... Rd4+ {[%clk 0:01:39.7]} 44. Ke3 {[%clk 0:01:01.1]} 44... Rd6
{[%clk 0:01:25.7]} 45. Rxd6 {[%clk 0:00:57.7]} 45... Kxd6 {[%clk 0:01:26.6]} 46.
Ke4 {[%clk 0:00:58.4]} 46... Ke6 {[%clk 0:01:19.6]} 47. Rb5 {[%clk 0:00:56]}
47... f5+ {[%clk 0:01:19.1]} 48. gxf6 {[%clk 0:00:53.5]} 48... Kxf6 {[%clk
0:01:19.5]} 49. Kd5 {[%clk 0:00:54]} 49... Kf5 {[%clk 0:01:13.8]} 50. Rb4 {[%clk
0:00:52.3]} 50... g5 {[%clk 0:01:10.4]} 51. Kc6 {[%clk 0:00:52.4]} 51... Rb8
{[%clk 0:01:06.1]} 52. Kc7 {[%clk 0:00:51.8]} 52... Rf8 {[%clk 0:01:03.7]} 53.
b7 {[%clk 0:00:52.2]} 53... Rf7+ {[%clk 0:01:01.1]} 54. Kd6 {[%clk 0:00:51.1]}
54... Rxb7 {[%clk 0:00:58.3]} 55. Rxb7 {[%clk 0:00:50.8]} 55... e4 {[%clk
0:00:58.3]} 56. fxe4+ {[%clk 0:00:49.4]} 56... Kxe4 {[%clk 0:00:59.2]} 57. Rb4+
{[%clk 0:00:48.3]} 57... Kf3 {[%clk 0:00:55.5]} 58. Ke5 {[%clk 0:00:44.9]} 58...
g4 {[%clk 0:00:55.9]} 59. Rf4+ {[%clk 0:00:44.6]} 59... Kg3 {[%clk 0:00:54.2]}
60. Kf5 {[%clk 0:00:44.9]} 1-0

[Event "Late-Titled-Tuesday-Blitz-June-25-2024"]
[Site "Chess.com"]
[Date "2024.06.25"]
[Round "11"]
[White "TheAlienParty"]
[Black "maurovargas01"]
[Result "1-0"]
[WhiteElo "2350"]
[BlackElo "1976"]
[TimeControl "180+1"]
[EndTime "16:06:06 PDT"]
[Termination "TheAlienParty won on time"]

1. c4 {[%clk 0:03:00]} 1... e5 {[%clk 0:02:55.8]} 2. Nc3 {[%clk 0:02:59.4]} 2...
Nc6 {[%clk 0:02:55.7]} 3. Nf3 {[%clk 0:02:58.7]} 3... f5 {[%clk 0:02:51.4]} 4.
g3 {[%clk 0:02:58.3]} 4... Nf6 {[%clk 0:02:51.6]} 5. d4 {[%clk 0:02:58]} 5... e4
{[%clk 0:02:49.2]} 6. Nh4 {[%clk 0:02:57.8]} 6... g6 {[%clk 0:02:42.9]} 7. Bg5
{[%clk 0:02:56.5]} 7... Bg7 {[%clk 0:02:39.3]} 8. Ng2 {[%clk 0:02:55.8]} 8... h6
{[%clk 0:02:35.3]} 9. Bxf6 {[%clk 0:02:55.1]} 9... Bxf6 {[%clk 0:02:33]} 10. e3
{[%clk 0:02:54.9]} 10... g5 {[%clk 0:02:30.8]} 11. h4 {[%clk 0:02:54]} 11... g4
{[%clk 0:02:27]} 12. Nf4 {[%clk 0:02:52.4]} 12... O-O {[%clk 0:02:25.1]} 13.
Nxe4 {[%clk 0:02:44.3]} 13... fxe4 {[%clk 0:02:18.7]} 14. Qxg4+ {[%clk
0:02:43.8]} 14... Bg7 {[%clk 0:02:13.1]} 15. Nh5 {[%clk 0:02:41.4]} 15... Qe7
{[%clk 0:02:08.7]} 16. Nxg7 {[%clk 0:02:37.9]} 16... Qxg7 {[%clk 0:02:04.8]} 17.
Qxe4 {[%clk 0:02:37.9]} 17... d6 {[%clk 0:01:57.8]} 18. Bd3 {[%clk 0:02:35.3]}
18... Bf5 {[%clk 0:01:56]} 19. Qd5+ {[%clk 0:02:35]} 19... Kh8 {[%clk
0:01:51.9]} 20. Bxf5 {[%clk 0:02:28.7]} 20... Nb4 {[%clk 0:01:50.1]} 21. Qe4
{[%clk 0:02:21.3]} 21... Rae8 {[%clk 0:01:39.8]} 22. Qb1 {[%clk 0:02:10.5]}
22... Qxd4 {[%clk 0:01:31.9]} 23. O-O {[%clk 0:01:50.4]} 23... Qe5 {[%clk
0:01:06.6]} 24. a3 {[%clk 0:01:41.3]} 24... Nc6 {[%clk 0:01:01.8]} 25. Bd7
{[%clk 0:01:40.1]} 25... Re7 {[%clk 0:00:55.4]} 26. Bxc6 {[%clk 0:01:39.7]}
26... bxc6 {[%clk 0:00:54.7]} 27. Qd3 {[%clk 0:01:27.5]} 27... c5 {[%clk
0:00:47]} 28. b4 {[%clk 0:01:26.7]} 28... Rg8 {[%clk 0:00:44.7]} 29. Ra2 {[%clk
0:01:22.7]} 29... Reg7 {[%clk 0:00:27.4]} 30. Qd5 {[%clk 0:01:02.6]} 30... Qf6
{[%clk 0:00:15.2]} 31. Qe4 {[%clk 0:00:53.2]} 31... Rg4 {[%clk 0:00:10.4]} 32.
Qh1 {[%clk 0:00:48]} 32... Rxh4 {[%clk 0:00:06]} 33. Qg2 {[%clk 0:00:47.2]} 1-0

[Event "Late-Titled-Tuesday-Blitz-June-25-2024"]
[Site "Chess.com"]
[Date "2024.06.25"]
[Round "11"]
[White "chesspilot01"]
[Black "zverr1"]
[Result "1-0"]
[WhiteElo "2370"]
[BlackElo "2544"]
[TimeControl "180+1"]
[EndTime "16:06:10 PDT"]
[Termination "chesspilot01 won on time"]

1. e4 {[%clk 0:03:00.9]} 1... c5 {[%clk 0:02:59.2]} 2. Nf3 {[%clk 0:02:59.2]}
2... Nc6 {[%clk 0:02:59]} 3. Nc3 {[%clk 0:02:54.9]} 3... g6 {[%clk 0:02:58.9]}
4. Bc4 {[%clk 0:02:52.1]} 4... Bg7 {[%clk 0:02:58.9]} 5. O-O {[%clk 0:02:52.2]}
5... e5 {[%clk 0:02:58.7]} 6. d3 {[%clk 0:02:48.9]} 6... Nge7 {[%clk 0:02:56.9]}
7. Bg5 {[%clk 0:02:40]} 7... h6 {[%clk 0:02:48.1]} 8. Be3 {[%clk 0:02:38]} 8...
d6 {[%clk 0:02:46.3]} 9. a4 {[%clk 0:02:36.5]} 9... O-O {[%clk 0:02:44.7]} 10.
Qd2 {[%clk 0:02:31.4]} 10... Kh7 {[%clk 0:02:44.4]} 11. Ne1 {[%clk 0:02:23.7]}
11... f5 {[%clk 0:02:29.7]} 12. exf5 {[%clk 0:02:12.5]} 12... Nxf5 {[%clk
0:02:27.6]} 13. Nd5 {[%clk 0:02:05.8]} 13... Nxe3 {[%clk 0:02:08.6]} 14. fxe3
{[%clk 0:01:57.4]} 14... Rxf1+ {[%clk 0:02:06.8]} 15. Kxf1 {[%clk 0:01:57]}
15... e4 {[%clk 0:01:49]} 16. c3 {[%clk 0:01:37.8]} 16... Ne5 {[%clk 0:01:39.6]}
17. Bb3 {[%clk 0:01:32.6]} 17... Qh4 {[%clk 0:01:31.6]} 18. d4 {[%clk
0:01:23.1]} 18... Qxh2 {[%clk 0:00:35.8]} 19. dxe5 {[%clk 0:01:22.7]} 19... Bg4
{[%clk 0:00:23.7]} 20. Nf6+ {[%clk 0:01:21.1]} 20... Bxf6 {[%clk 0:00:20.8]} 21.
exf6 {[%clk 0:01:20.7]} 21... Qh1+ {[%clk 0:00:09.4]} 22. Kf2 {[%clk 0:01:19.9]}
22... Qh4+ {[%clk 0:00:03.9]} 23. Kg1 {[%clk 0:01:19.6]} 23... Qxf6 {[%clk
0:00:04.8]} 24. Qf2 {[%clk 0:01:18.7]} 24... Bf5 {[%clk 0:00:01]} 25. Rd1 {[%clk
0:01:10.3]} 25... Rf8 {[%clk 0:00:01.5]} 26. Bd5 {[%clk 0:01:06.9]} 26... Qe7
{[%clk 0:00:01.7]} 27. Qg3 {[%clk 0:01:04.9]} 27... h5 {[%clk 0:00:01.6]} 28.
Nc2 {[%clk 0:01:00.5]} 28... Rf6 {[%clk 0:00:01.9]} 29. Rf1 {[%clk 0:00:54.1]}
29... b6 {[%clk 0:00:02.3]} 30. Qg5 {[%clk 0:00:52.1]} 30... Kg7 {[%clk
0:00:02.5]} 31. Na3 {[%clk 0:00:46.4]} 31... a6 {[%clk 0:00:02.4]} 32. Nc4
{[%clk 0:00:43.7]} 32... b5 {[%clk 0:00:02.6]} 33. Rxf5 {[%clk 0:00:31.8]} 1-0

[Event "Late-Titled-Tuesday-Blitz-June-25-2024"]
[Site "Chess.com"]
[Date "2024.06.25"]
[Round "11"]
[White "Rodalquilar"]
[Black "rhungaski"]
[Result "0-1"]
[WhiteElo "2826"]
[BlackElo "2674"]
[TimeControl "180+1"]
[EndTime "16:06:14 PDT"]
[Termination "rhungaski won by checkmate"]

1. d4 {[%clk 0:03:00.9]} 1... e6 {[%clk 0:02:59.8]} 2. Nf3 {[%clk 0:02:59.7]}
2... d5 {[%clk 0:02:59.5]} 3. Bf4 {[%clk 0:02:59.6]} 3... Nf6 {[%clk 0:02:59.9]}
4. e3 {[%clk 0:02:59.9]} 4... c5 {[%clk 0:03:00.6]} 5. Nbd2 {[%clk 0:02:59]}
5... Nc6 {[%clk 0:03:00.8]} 6. c3 {[%clk 0:02:59.3]} 6... Nh5 {[%clk 0:03:00.7]}
7. Bg5 {[%clk 0:02:56.8]} 7... Qb6 {[%clk 0:03:00.3]} 8. dxc5 {[%clk 0:02:56.8]}
8... Bxc5 {[%clk 0:02:55.9]} 9. b4 {[%clk 0:02:57.2]} 9... Be7 {[%clk
0:02:53.5]} 10. b5 {[%clk 0:02:57.5]} 10... Na5 {[%clk 0:02:41.7]} 11. Bxe7
{[%clk 0:02:57]} 11... Kxe7 {[%clk 0:02:42.6]} 12. Qa4 {[%clk 0:02:52.1]} 12...
Nf6 {[%clk 0:02:41.1]} 13. Qb4+ {[%clk 0:02:50.6]} 13... Ke8 {[%clk 0:02:38.6]}
14. Be2 {[%clk 0:02:22.9]} 14... Qd8 {[%clk 0:02:37.8]} 15. O-O {[%clk
0:02:20.9]} 15... b6 {[%clk 0:02:38.2]} 16. Rfd1 {[%clk 0:02:12.2]} 16... Qe7
{[%clk 0:02:38.4]} 17. Qf4 {[%clk 0:02:02.8]} 17... Bb7 {[%clk 0:02:37.2]} 18.
Ne5 {[%clk 0:02:02.9]} 18... g5 {[%clk 0:02:05.4]} 19. Qxg5 {[%clk 0:01:51.6]}
19... Rg8 {[%clk 0:02:05.4]} 20. Qh4 {[%clk 0:01:51.8]} 20... d4 {[%clk
0:02:05.3]} 21. cxd4 {[%clk 0:01:30.1]} 21... Bxg2 {[%clk 0:02:01.1]} 22. f4
{[%clk 0:00:16.2]} 22... Bh3+ {[%clk 0:01:58.4]} 23. Kh1 {[%clk 0:00:15.9]}
23... Bg2+ {[%clk 0:01:55.6]} 24. Kg1 {[%clk 0:00:16.4]} 24... Bh3+ {[%clk
0:01:54.1]} 25. Kh1 {[%clk 0:00:16.7]} 25... Qb7+ {[%clk 0:01:44.2]} 26. d5
{[%clk 0:00:09.1]} 26... Qxd5+ {[%clk 0:01:40.1]} 27. Ndf3 {[%clk 0:00:05.3]}
27... Bg2+ {[%clk 0:01:25.9]} 28. Kg1 {[%clk 0:00:05.9]} 28... Bxf3+ {[%clk
0:01:25.9]} 29. Kf1 {[%clk 0:00:02.4]} 29... Bxe2+ {[%clk 0:01:20]} 30. Kxe2
{[%clk 0:00:03.3]} 30... Qxb5+ {[%clk 0:01:02.5]} 31. Ke1 {[%clk 0:00:02.6]}
31... Ne4 {[%clk 0:00:49.4]} 32. Rd3 {[%clk 0:00:02.5]} 32... Rg1+ {[%clk
0:00:43.3]} 33. Ke2 {[%clk 0:00:02.8]} 33... Qb2+ {[%clk 0:00:41.9]} 34. Kf3
{[%clk 0:00:02.9]} 34... Qg2# {[%clk 0:00:31.9]} 0-1